[Event "3rd Tal Heraklion-IM 2022"]
[Site "Heraklion"]
[Date "2022.04.27"]
[Round "2.3"]
[White "Lirindzakis, Timotheos"]
[Black "Bracker, Arne"]
[Result "1/2-1/2"]
[ECO "E05"]
[WhiteElo "2164"]
[BlackElo "2276"]
[Annotator "TA"]
[PlyCount "53"]
[EventDate "2022.04.18"]
[EventType "tourn"]
[EventCountry "GRE"]
[SourceTitle "playchess.com"]
[Source "ChessBase"]
[SourceQuality "1"]
[TimeControl "40/5400+30:1800+30"]

{[%evp 21,53,12,13,8,6,10,5,4,3,0,7,12,8,0,13,0,0,0,15,0,6,0,16,0,30,30,36,37,39,38,31,31,18,23]} 1. d4 {[%emt 0:00:06]} Nf6 {[%emt 0:00:22]} 2. c4 {[%emt 0:00:05]} e6 {[%emt 0:00:20]} 3. Nf3 {[%emt 0:00:16]} d5 {[%emt 0:00:11]} 4. g3 {[%emt 0:00:39]} Be7 {[%emt 0:00:12]} 5. Bg2 {[%emt 0:00:13]} O-O {[%emt 0:00:16]} 6. O-O {[%emt 0:00:05]} dxc4 {[%emt 0:00:09]} 7. Qc2 {[%emt 0:00:40]} a6 {[%emt 0:00:28]} 8. a4 {[%emt 0:00:29]} Bd7 {[%emt 0:00:32]} 9. Qxc4 {[%emt 0:00:31]} Bc6 {[%emt 0:00:16]} 10. Bg5 {[%emt 0:00:38]} Nbd7 {[%emt 0:01:39]} 11. Nc3 {[%emt 0:00:29]} h6 {[%emt 0:00:43]} 12. Bxf6 {[%emt 0:00:27] E05: Open Catalan: 5 Nf3 Be7.} Nxf6 {[%emt 0:00:28]} 13. Rfd1 $1 {[%emt 0:00:21][%mdl 4] is now more promising than 13.b4.} Qd6 {[%emt 0:16:38]} 14. e3 {[%emt 0:05:55]} Rfd8 {[%emt 0:06:57] [#]} 15. Qe2 $146 {[%emt 0:03:00]} ({Predecessor:} 15. a5 Rac8 16. Qe2 Bxf3 17. Bxf3 c6 18. Ra4 g6 19. Rc4 Qc7 20. b4 Nd5 21. Qb2 Nxc3 22. Qxc3 {½-½ (34) Giri,A (2776)-Grischuk,A (2778) Zagreb 2021}) 15... Bxf3 {[%emt 0:05:20]} 16. Bxf3 {[%emt 0:01:06]} c6 {[%emt 0:00:25]} 17. Kg2 {[%emt 0:46:52]} Rac8 {[%emt 0:11:52]} 18. Rac1 {[%emt 0:00:58]} Qb4 {[%emt 0:03:14]} 19. Qc2 {[%emt 0:03:58]} Qa5 {[%emt 0:07:37]} 20. Qb3 {[%emt 0:02:52]} Qb4 {[%emt 0:07:28]} 21. Qc2 {[%emt 0:04:20]} Qa5 {[%emt 0:04:08]} 22. Qb3 {[%emt 0:00:25]} Rd7 {[%emt 0:03:04]} 23. d5 {[%emt 0:10:57]} exd5 {[%emt 0:09:52] [#]} (23... Nxd5 $2 24. Nxd5 exd5 25. Bxd5 $1 $16 {[%mdl 512]} (25. Bg4 Qc7 $14)) 24. Nxd5 $1 {[%emt 0:01:54][%mdl 64] Pin} Rcd8 $1 {[%emt 0:00:45]} (24... Nxd5 $2 25. Bxd5 Bf6 {[#]} 26. Be6 $1 {[%mdl 512]} Rxd1 27. Bxf7+ (27. Rxd1 Rc7 $11) 27... Kh8 28. Rxd1 $18) 25. Nxe7+ {[%emt 0:02:41]} Rxe7 {[%emt 0:00:04]} 26. Rxd8+ {[%emt 0:03:29]} Qxd8 {[%emt 0:00:03]} 27. Rd1 {[%emt 0:01:38] Weighted Error Value: White=0.05 (flawless) /Black=0.05 (flawless)} 1/2-1/2

[Event "3rd Tal Heraklion-IM 2022"]
[Site "Heraklion"]
[Date "2022.04.27"]
[Round "2.4"]
[White "Sandalakis, Nikolaos"]
[Black "Rakshitta Ravi"]
[Result "1-0"]
[ECO "C81"]
[WhiteElo "2240"]
[BlackElo "2240"]
[Annotator "TA"]
[PlyCount "95"]
[EventDate "2022.04.18"]
[EventType "tourn"]
[EventCountry "GRE"]
[SourceTitle "playchess.com"]
[Source "ChessBase"]
[SourceQuality "1"]
[TimeControl "40/5400+30:1800+30"]

{[%evp 30,95,38,15,34,25,32,25,51,45,52,39,52,48,70,54,107,95,92,85,109,66,133,115,147,128,131,71,77,52,127,139,160,116,175,162,154,127,190,194,196,195,175,191,288,294,290,287,304,286,286,287,341,247,1003,250,391,79,112,98,29976,29980,29994,29995,29997,29996,29998,29999]} 1. e4 {[%emt 0:00:06]} e5 {[%emt 0:00:18]} 2. Nf3 {[%emt 0:00:17]} Nc6 {[%emt 0:00:08]} 3. Bb5 {[%emt 0:00:21][%cal Bf1b5,Bb5a4,Ba4b3,Bb3c4][%mdl 32]} a6 {[%emt 0:00:12]} 4. Ba4 {[%emt 0:00:28]} Nf6 {[%emt 0:00:06]} 5. O-O {[%emt 0:00:17]} Nxe4 {[%emt 0:00:18]} 6. d4 {[%emt 0:02:48]} b5 {[%emt 0:00:06]} 7. Bb3 {[%emt 0:00:05]} d5 {[%emt 0:00:06]} 8. dxe5 {[%emt 0:00:11]} Be6 {[%emt 0:00:08]} 9. Qe2 {[%emt 0:00:28]} Be7 {[%emt 0:05:35]} 10. Rd1 {[%emt 0:01:21]} O-O {[%emt 0:00:09]} 11. c4 {[%emt 0:00:47]} bxc4 {[%emt 0:00:05]} 12. Bxc4 {[%emt 0:00:06]} Bc5 {[%emt 0:00:08]} 13. Be3 {[%emt 0:00:24]} Bxe3 {[%emt 0:00:20]} 14. Qxe3 {[%emt 0:00:05]} Qb8 {[%emt 0:00:08]} 15. Bb3 {[%emt 0:00:24]} Na5 {[%emt 0:02:24]} 16. Nbd2 {[%emt 0:18:51]} Qb6 {[%emt 0:01:45] C81: Open Ruy Lopez: Keres Variation (9 Qe2).} 17. Qxb6 {[%emt 0:10:22]} cxb6 {[%emt 0:00:11]} 18. Nd4 {[%emt 0:07:27] [#]} Rfd8 $146 {[%emt 0:25:47] White has an edge.} ({Predecessor:} 18... Rac8 19. Nxe4 Nxb3 20. Nd6 Nxa1 21. Nxc8 Rxc8 22. Rxa1 g5 23. f3 Rc4 24. Rd1 Ra4 {½-½ (44) Das,A (2434)-Karthikeyan,M (2578) Patna 2017}) 19. f3 {[%emt 0:18:34]} Nxd2 {[%emt 0:05:48]} 20. Rxd2 {[%emt 0:00:04]} Nc4 {[%emt 0:12:01]} 21. Re2 {[%emt 0:07:05]} g5 {[%emt 0:00:50]} 22. Kf2 {[%emt 0:03:02]} Rac8 {[%emt 0:02:41]} ({Black should try} 22... Re8 $14) 23. h4 {[%emt 0:03:44]} gxh4 {[%emt 0:11:48]} 24. Rh1 {[%emt 0:00:23]} h3 {[%emt 0:01:02]} 25. gxh3 {[%emt 0:11:19]} Kh8 {[%emt 0:02:21]} (25... Na5 $1 $14) 26. f4 $16 {[%emt 0:01:17]} Rg8 {[%emt 0:00:41]} 27. f5 {[%emt 0:00:11]} Bd7 {[%emt 0:00:05] [#]} 28. Rg1 {[%emt 0:04:03]} (28. Kf3 $142 $1) 28... Rxg1 {[%emt 0:07:05]} 29. Kxg1 {[%emt 0:00:02]} Rg8+ {[%emt 0:00:33]} ({Black should play} 29... Kg7 $1 $14) 30. Kf2 {[%emt 0:00:18]} Rg5 {[%emt 0:00:23]} 31. Kf3 {[%emt 0:04:01] e6 is the strong threat.} Rg1 {[%emt 0:03:02]} (31... Bxf5 $2 32. Kf4 Bd3 33. Kxg5 $18) (31... Kg7 $16) 32. Bxc4 $18 {[%emt 0:03:21]} dxc4 {[%emt 0:00:06][%mdl 4096] Endgame KRB-KRN} 33. e6 {[%emt 0:02:09]} fxe6 {[%emt 0:00:20]} (33... Be8 $16 {is a better defense.}) 34. fxe6 {[%emt 0:00:01]} Be8 {[%emt 0:00:43]} 35. Kf4 {[%emt 0:00:34]} Kg7 {[%emt 0:03:41]} 36. Ke5 {[%emt 0:00:43]} Rg5+ {[%emt 0:06:43]} (36... Bg6 {might work better.} 37. Rf2 Re1+ 38. Kd6 Rd1) 37. Nf5+ {[%emt 0:01:54]} ({Don't do} 37. Kd6 $6 h6 38. Rf2 Rg1 39. Nf5+ Kh7 $18) 37... Kg6 {[%emt 0:00:55]} 38. Rf2 {[%emt 0:00:24]} b5 {[%emt 0:03:16]} 39. h4 {[%emt 0:00:17]} Rg1 {[%emt 0:00:05]} 40. Nd6 {[%emt 0:00:00]} Bc6 {[%emt 0:00:00]} 41. Re2 {[%emt 0:09:35] Against Re1} Ra1 $2 {[%emt 0:05:08]} (41... Rd1 42. e7 Kh5 43. e8=Q+ Bxe8) 42. e7 $2 {[%emt 0:06:21]} (42. Nf5) 42... Kh5 {[%emt 0:08:40]} (42... Rd1 $142 43. e8=Q+ Bxe8) 43. e8=Q+ $2 {[%emt 0:13:44]} (43. Ne4 $18 {is more deadly. Strongly threatening Kd6.} Rd1 44. Nf6+ Kxh4 45. Nxh7) 43... Bxe8 $16 {[%emt 0:00:05]} 44. Nxe8 {[%emt 0:00:04] aiming for Re4.} Rxa2 $2 {[%emt 0:00:19][%mdl 8192] [#] A mistake that costs the game.} (44... Kxh4 $16 45. Nf6 h5) 45. Nf6+ $1 {[%emt 0:01:25] White mates.} Kg6 {[%emt 0:01:14]} 46. Ke6 {[%emt 0:02:15]} c3 {[%emt 0:05:10]} 47. Rg2+ {[%emt 0:00:13]} Kh6 {[%emt 0:00:02]} 48. Rg5 {[%emt 0:00:08] Weighted Error Value: White=0.53/Black=0.55} 1-0

[Event "3rd Tal Heraklion-IM 2022"]
[Site "Heraklion"]
[Date "2022.04.27"]
[Round "2.5"]
[White "Anagnostopoulos, Konstantinos"]
[Black "Cmiel, Thorsten"]
[Result "1-0"]
[ECO "B33"]
[WhiteElo "2340"]
[BlackElo "2079"]
[Annotator "TA"]
[PlyCount "49"]
[EventDate "2022.04.18"]
[EventType "tourn"]
[EventCountry "GRE"]
[SourceTitle "playchess.com"]
[Source "ChessBase"]
[SourceQuality "1"]
[TimeControl "40/5400+30:1800+30"]

{[%evp 9,49,20,66,39,71,69,66,67,70,64,70,39,22,35,39,24,47,37,55,39,34,38,49,34,34,34,31,35,33,47,36,27,48,0,40,32,78,64,66,70,1625,1618]} 1. e4 {[%emt 0:00:24]} c5 {[%emt 0:02:45]} 2. Nf3 {[%emt 0:00:30][%cal Bg1f3,Bf3d4,Bd4b5,Bb5c3][%mdl 32]} Nc6 {[%emt 0:00:06]} 3. d4 {[%emt 0:00:07]} cxd4 {[%emt 0:00:08]} 4. Nxd4 {[%emt 0:00:04]} Nf6 {[%emt 0:00:07]} 5. Nc3 {[%emt 0:00:43]} h5 {[%emt 0:00:10]} (5... e6 $11 {should be considered.}) 6. Be2 {[%emt 0:05:20] B33: Sicilian: Pelikan and Sveshnikov Variations.} e5 {[%emt 0:00:30]} 7. Ndb5 {[%emt 0:03:22]} d6 {[%emt 0:00:14]} 8. Nd5 {[%emt 0:02:07] White is slightly better.} Nxd5 {[%emt 0:00:31]} 9. exd5 {[%emt 0:00:05]} Ne7 {[%emt 0:05:22][%cal Bc6e7,Be7f5,Bf5d4][%mdl 32]} 10. c4 {[%emt 0:03:19] White is more active.} (10. c3 $5 {[%cal Rd1a4]}) 10... Nf5 {[%emt 0:00:27] [#]} 11. Bxh5 $146 {[%emt 0:04:26]} ({Predecessor:} 11. O-O a6 12. Nc3 g6 13. a4 a5 14. b3 Bg7 15. Nb5 O-O 16. Ra2 h4 17. h3 {½-½ (24) Pikula,D (2380)-Stefansson,V (2371) Arandjelovac 2021}) 11... a6 {[%emt 0:03:21]} 12. Nc3 {[%emt 0:00:11]} Nd4 {[%emt 0:17:58] [#] White must now prevent ...Bf5.} 13. Be3 {[%emt 0:09:25]} Qh4 {[%emt 0:13:37]} 14. Be2 {[%emt 0:00:38]} Nxe2 {[%emt 0:00:45]} 15. Qxe2 {[%emt 0:00:44]} Bg4 {[%emt 0:01:21]} 16. Qc2 {[%emt 0:02:30]} Bd7 {[%emt 0:02:36]} 17. Qb3 {[%emt 0:04:08]} Rc8 {[%emt 0:01:46]} 18. c5 {[%emt 0:00:58]} dxc5 {[%emt 0:00:16]} 19. Qxb7 {[%emt 0:00:06]} Qc4 {[%emt 0:01:01]} 20. Qb3 {[%emt 0:01:14]} Qg4 {[%emt 0:03:02]} 21. Kf1 {[%emt 0:02:33]} (21. Qb6 $14 {deserves consideration.}) 21... f5 {[%emt 0:01:25]} 22. Re1 {[%emt 0:05:03]} Bd6 {[%emt 0:05:10]} (22... Qb4 $14) 23. Qb6 $16 {[%emt 0:08:05][%csl LRa6,LRd6]} Qc4+ {[%emt 0:00:26]} 24. Kg1 {[%emt 0:00:29]} Ke7 {[%emt 0:00:08][%mdl 8192] [#]} (24... Bb8 $14) 25. Bg5+ {[%emt 0:06:43] Weighted Error Value: White=0.10 (very precise) /Black=0.11 (very precise)} 1-0

[Event "3rd Tal Heraklion-IM 2022"]
[Site "Heraklion"]
[Date "2022.04.28"]
[Round "3.1"]
[White "Cmiel, Thorsten"]
[Black "Kotsinis, Alexandros"]
[Result "0-1"]
[ECO "A28"]
[WhiteElo "2079"]
[BlackElo "2055"]
[Annotator "TA"]
[PlyCount "32"]
[EventDate "2022.04.18"]
[EventType "tourn"]
[EventCountry "GRE"]
[SourceTitle "playchess.com"]
[Source "ChessBase"]
[SourceQuality "1"]
[TimeControl "40/5400+30:1800+30"]

{[%evp 17,32,8,0,0,0,0,70,-90,-57,-40,-48,-229,-240,-327,-281,-378,-381]} 1. c4 {[%emt 0:07:37]} e5 {[%emt 0:00:10]} 2. Nc3 {[%emt 0:00:32]} Nf6 {[%emt 0:00:08]} 3. Nf3 {[%emt 0:00:12]} Nc6 {[%emt 0:00:09]} 4. e3 {[%emt 0:04:55]} Bb4 {[%emt 0:00:08]} 5. Qc2 {[%emt 0:09:29]} O-O {[%emt 0:00:08]} 6. Nd5 {[%emt 0:00:05]} Re8 {[%emt 0:00:21]} 7. Qf5 {[%emt 0:04:05]} d6 {[%emt 0:00:10]} 8. Nxf6+ {[%emt 0:00:07]} gxf6 {[%emt 0:00:04]} 9. Qh5 {[%emt 0:00:58]} e4 {[%emt 0:03:51]} 10. a3 {[%emt 0:05:56] aiming for Nd4. A28: English Opening: Four Knights Variation.} exf3 {[%emt 0:11:58]} 11. gxf3 {[%emt 0:01:10]} Bc5 {[%emt 0:08:29] [#]} ({Better is} 11... Re5 $11 12. Qh6 (12. Rg1+ Rg5 $14) 12... Bf5 13. axb4 Bg6) 12. f4 $146 {[%emt 0:28:12]} (12. Rg1+ $14 {was the only good move.} Kh8 13. Qh6 (13. Bd3 f5 $17)) ({Predecessor:} 12. Rg1+ Kh8 13. Qh6 Rg8 14. Rxg8+ Qxg8 15. b4 Qg7 16. Qxg7+ Kxg7 17. bxc5 dxc5 18. f4 {1-0 (55) Voetter,H (2169)-Klapp,H (2135) GER email 2012}) 12... f5 {[%emt 0:21:28] Strongly threatening ...Re6.} 13. Rg1+ {[%emt 0:03:53]} Kh8 $1 {[%emt 0:00:33] And now ...Bd4 would win.} 14. Qh6 $2 {[%emt 0:18:12] [#]} ({White should try} 14. Rg3 $15) 14... Bd4 $1 $19 {[%emt 0:02:06]} 15. Kd1 {[%emt 0:01:21] [#]} Qf6 {[%emt 0:02:28]} 16. Qh5 {[%emt 0:00:15]} (16. Qxf6+ Bxf6) 16... Bxb2 {[%emt 0:00:50] Weighted Error Value: White=0.92/Black=0.18 (very precise)} 0-1

[Event "3rd Tal Heraklion-IM 2022"]
[Site "Heraklion"]
[Date "2022.04.28"]
[Round "3.2"]
[White "Rakshitta Ravi"]
[Black "Anagnostopoulos, Konstantinos"]
[Result "1-0"]
[ECO "E05"]
[WhiteElo "2240"]
[BlackElo "2340"]
[Annotator "TA"]
[PlyCount "81"]
[EventDate "2022.04.18"]
[EventType "tourn"]
[EventCountry "GRE"]
[SourceTitle "playchess.com"]
[Source "ChessBase"]
[SourceQuality "1"]
[TimeControl "40/5400+30:1800+30"]

{[%evp 13,81,0,17,0,0,0,28,16,13,43,39,37,26,35,35,28,35,20,38,25,47,53,34,41,77,0,0,0,36,31,20,0,0,0,56,61,64,63,47,62,93,-128,14,-192,-208,-218,-202,-179,-181,-180,-19,-15,-17,-30,-27,-43,-29,-17,0,-1186,0,0,0,0,504,500,491,477,447,442]} 1. Nf3 {[%emt 0:00:20]} d5 {[%emt 0:00:10]} 2. d4 {[%emt 0:00:14]} Nf6 {[%emt 0:00:24]} 3. g3 {[%emt 0:00:14]} e6 {[%emt 0:00:06]} 4. Bg2 {[%emt 0:00:06]} Be7 {[%emt 0:00:06]} 5. O-O {[%emt 0:00:10]} O-O {[%emt 0:00:03]} 6. c4 {[%emt 0:00:13]} dxc4 {[%emt 0:00:13]} 7. Qc2 {[%emt 0:00:13]} b5 {[%emt 0:01:02]} 8. a4 {[%emt 0:01:58] E05: Open Catalan: 5 Nf3 Be7.} b4 {[%emt 0:00:18]} 9. Nfd2 {[%emt 0:00:55]} Nd5 {[%emt 0:01:08] now scores much better than the old 9...c6.} 10. Nxc4 {[%emt 0:00:16] White has an edge.} c5 {[%emt 0:00:42]} 11. dxc5 {[%emt 0:00:41]} Ba6 {[%emt 0:00:43]} 12. Ne3 {[%emt 0:00:55]} Nd7 $1 {[%emt 0:00:37]} 13. Nxd5 {[%emt 0:00:23]} exd5 {[%emt 0:00:07]} 14. c6 {[%emt 0:00:06]} Rc8 {[%emt 0:07:25]} 15. Bf4 {[%emt 0:00:45] Prevents Ne5.} Nc5 {[%emt 0:00:32]} 16. Rd1 {[%emt 0:00:20]} d4 {[%emt 0:01:10]} 17. h4 {[%emt 0:00:46]} Re8 {[%emt 0:02:33]} 18. Nd2 {[%emt 0:02:03] [#]} (18. c7 $5 Qd7 19. Kh2 $11) 18... Bf8 $146 {[%emt 0:04:23]} ({Predecessor:} 18... Bxe2 19. c7 Qd7 20. Rdc1 Nd3 21. Bc6 Qh3 22. Bxe8 Nxf4 23. Qe4 Rxe8 24. Qxf4 Ba6 {1-0 (33) Gelfand,B (2684)-Deac,B (2618) Bucharest 2019}) 19. Ne4 {[%emt 0:33:32] White is more active.} (19. Nc4 b3 20. Qc1 Rxe2 $15) ({White should try} 19. c7 $16 Rxc7 20. Bxc7 Qxc7 21. Ne4) 19... b3 {[%emt 0:05:17]} 20. Qb1 {[%emt 0:00:14] And now Nxc5 would win.} Bxe2 {[%emt 0:13:22]} 21. c7 {[%emt 0:10:24]} (21. Ng5 $2 d3 22. c7 Qd4 $19) 21... Qd7 {[%emt 0:02:25]} 22. Nxc5 {[%emt 0:23:16]} (22. Ng5 g6 23. Rd2 d3 $15) 22... Bxc5 {[%emt 0:00:11]} 23. Rc1 {[%emt 0:00:04]} Rxc7 {[%emt 0:08:02]} (23... Bb6 $1 $11 24. Bc6 Qh3) 24. Bxc7 $14 {[%emt 0:00:50]} Qxc7 {[%emt 0:00:11]} 25. Qf5 {[%emt 0:02:33]} Re5 {[%emt 0:00:20]} 26. Qf4 {[%emt 0:00:09][%cal Og2d5]} Qe7 {[%emt 0:05:45] [#]} 27. a5 $2 {[%emt 0:06:12]} (27. Rxc5 $1 $16 {and life is bright.} Rxc5 28. Qxd4) 27... h6 {[%emt 0:07:37] [#]} (27... d3 $1 $17 {Strongly threatening ...g6.} 28. Rc4 g6) 28. a6 $2 {[%emt 0:08:19]} (28. Rxc5 $1 $11 Rxc5 29. Qxd4) 28... g5 $19 {[%emt 0:01:21]} 29. hxg5 {[%emt 0:00:33]} hxg5 {[%emt 0:00:07]} 30. Qd2 {[%emt 0:00:09]} d3 $1 {[%emt 0:03:09]} 31. Ra5 {[%emt 0:05:22] [#]} Bb6 $2 {[%emt 0:03:11]} (31... Bxf2+ $1 $19 {[%mdl 512]} 32. Kxf2 Qf6+ 33. Ke1 Qb6 $1 34. Qxg5+ (34. Rc8+ $2 Kh7 $19) 34... Rxg5 35. Rxg5+ Kf8 36. Rc8+ Ke7 37. Re5+ Kd7) 32. Rxe5 $1 $11 {[%emt 0:02:34]} Qxe5 {[%emt 0:00:06]} 33. Qb4 $1 {[%emt 0:00:57] Black must now prevent Rc8+.} ({Much worse is} 33. Rc8+ Kg7 34. Qb4 Bxf2+ 35. Kh1 d2 36. Qxd2 Bxa6 $1 $15) 33... Kg7 {[%emt 0:20:12]} (33... Qxb2 {gets mated.} 34. Rc8+ Kh7 35. Be4+ Kg7 36. Qf8+ Kf6 37. Rc6+ Ke5 38. Qe7+ Kd4 39. Bg2) (33... Qxg3 $2 {[#]} 34. Qxb6 $3 {[%mdl 512]} axb6 35. fxg3 $18) 34. Rc8 {[%emt 0:01:01] [#]} Bxf2+ $1 {[%emt 0:02:12]} 35. Kh1 $1 {[%emt 0:00:01] Qf8+ is the strong threat. Really sharp!} Kg6 {[%emt 0:07:55]} (35... Qxg3 {leads to mate.} 36. Qf8+ Kf6 37. Rc6+ Kf5 38. Qxf7+ Kg4 39. Rc4+) 36. Qf8 $2 {[%emt 0:00:51][%mdl 8192]} (36. Rc6+ $11 Kg7 37. Rc8) 36... Bg4 $2 {[%emt 0:04:06] This bishop pair is nice.} (36... d2 $19 37. Rc6+ Kf5 38. Qxf7+ Kg4 39. Qd7+ Kxg3 40. Qh3+ Kf4 41. Rc4+ Bd4 42. Rxd4+ Qxd4 43. Qh2+ Kf5 44. Qh3+ Bg4 45. Qh7+ Ke6 46. Qg6+ Ke7 47. Qxg5+ Kd7 48. Qb5+ Ke6 49. Qxb3+ Ke5 50. Qg3+ Qf4 51. Qc3+ Kf5 52. Qd3+ Kg5 53. Qd8+ Kh5 54. Qe8+ Kh4 55. Qh8+ Bh5 56. Qd8+ Kg3 57. Qd3+ Bf3 58. Qxf3+ Qxf3 59. Bxf3 Kxf3 60. Kh2 d1=Q 61. b3 Qd2+ 62. Kh3 Qh6#) 37. Qg8+ $1 {[%emt 0:00:43]} Kh6 $1 {[%emt 0:00:46] ( -> ...Qe1+)} 38. Qf8+ {[%emt 0:00:27]} Qg7 $4 {[%emt 0:00:38][%mdl 8192]} (38... Kg6 $11 {and Black has nothing to worry.} 39. Qg8+ Kh6 40. Qf8+ Kg6) 39. Rc6+ $18 {[%emt 0:00:15] White is clearly winning.} Be6 {[%emt 0:00:09] [#]} 40. Rxe6+ $1 {[%emt 0:00:00][%mdl 512]} fxe6 {[%emt 0:00:00]} 41. Qxf2 {[%emt 0:00:10] Weighted Error Value: White=0.43/Black=0.45} 1-0